{"text_format":"1","workbook":"xlsx","n_sheets":1,"sheets":["Каменный цветок"],"not_rendered":{"charts":0,"images":41,"macros":0,"external_links":0,"defined_names":0,"comments":0,"pivot_tables":0},"unopened":[],"bounds":{"document_bytes":16777216,"sheet_cells":100000,"rows_first":2000,"rows_last":500,"rows_between":2000,"halvings":0,"cell_chars":16384,"cell_head_chars":4096},"cells_cut":0,"cells_raw":0,"read":"whole","date_system":"1900"}

{"sheet":"Каменный цветок","index":0,"n_rows":60,"n_cols":11,"rows_kept":60,"cut":false,"hidden":false,"merged":[]}
[null,"Наименование продукции ","фотографии мешков","на поддоне ","Мелкий опт","Минимально публикуемые цены крупный опт","Столбец2"]
[null,"наименование продукции                    ","ФОТО МЕШКОВ","ВЕС НА ПОДДОНЕ","Мелкий опт","Минимально публикуемые цены крупный опт","ЦЕНА В РОЗНИЦУ"]
[null,"Пескобетон\\Сухая смесь"]
[null,"Смесь штукатурная М150+ ТМ \"Каменный цветок\" \"БЕРИЛЛ\" 50кг  (цементно-известковая) ",null,"2000кг. ",{"$f":"Таблица1[[#This Row],[Минимально публикуемые цены крупный опт]]*103%","v":{"$error":"#REF!"}},{"$f":"#REF!*104%","v":{"$error":"#REF!"}},211.29987736000004]
[null,"\"ШУНГИТ\" СМЕСЬ ДЛЯ ТРОТУАРНОЙ ПЛИТКИ, 40 кг",null,"1960кг. ",{"$f":"Таблица1[[#This Row],[Минимально публикуемые цены крупный опт]]*103%","v":{"$error":"#REF!"}},{"$f":"#REF!*104%","v":{"$error":"#REF!"}},149]
[null,"Смесь универсальная М150+ ТМ \"Каменный цветок\" \"ПИРИТ\" 25кг",null,"1200кг. ",{"$f":"Таблица1[[#This Row],[Минимально публикуемые цены крупный опт]]*103%","v":{"$error":"#REF!"}},{"$f":"#REF!*104%","v":{"$error":"#REF!"}},108.63056843294119]
[null,"Смесь универсальная М150+ ТМ \"Каменный цветок\" \"ПИРИТ\" 40кг",null,"1960кг. ",{"$f":"Таблица1[[#This Row],[Минимально публикуемые цены крупный опт]]*103%","v":{"$error":"#REF!"}},{"$f":"#REF!*104%","v":{"$error":"#REF!"}},168.56632305632655]
[null,"Смесь универсальная М150+ ТМ \"Каменный цветок\" \"ПИРИТ\" 50кг",null,"2000кг. ",{"$f":"Таблица1[[#This Row],[Минимально публикуемые цены крупный опт]]*103%","v":{"$error":"#REF!"}},{"$f":"#REF!*104%","v":{"$error":"#REF!"}},204.62469456000005]
[null,"Смесь универсальная М200+ ТМ \"Каменный цветок\" \"ДИАМАНТ\" 50кг",null,"2000кг. ",{"$f":"Таблица1[[#This Row],[Минимально публикуемые цены крупный опт]]*103%","v":{"$error":"#REF!"}},{"$f":"#REF!*104%","v":{"$error":"#REF!"}},212.63491392000003]
[null,"Смесь монтажно-кладочная М200+ ТМ \"Каменный цветок\" \"ЦИТРИН\" 50кг",null,"2000кг. ",{"$f":"Таблица1[[#This Row],[Минимально публикуемые цены крупный опт]]*103%","v":{"$error":"#REF!"}},{"$f":"#REF!*104%","v":{"$error":"#REF!"}},212.63491392000003]
[null,"Пескобетон М300+ ТМ \"Каменный цветок\" \"ТИТАНИТ\" 25кг",null,"1200кг. ",{"$f":"Таблица1[[#This Row],[Минимально публикуемые цены крупный опт]]*103%","v":{"$error":"#REF!"}},{"$f":"#REF!*104%","v":{"$error":"#REF!"}},116.6407877929412]
[null,"Пескобетон М300+ ТМ \"Каменный цветок\" \"ТИТАНИТ\" 40кг",null,"1960кг. ",{"$f":"Таблица1[[#This Row],[Минимально публикуемые цены крупный опт]]*103%","v":{"$error":"#REF!"}},{"$f":"#REF!*104%","v":{"$error":"#REF!"}},179.24661553632657]
[null,"Пескобетон М300+ ТМ \"Каменный цветок\" \"ТИТАНИТ\" 50кг",null,"2000кг. ",{"$f":"Таблица1[[#This Row],[Минимально публикуемые цены крупный опт]]*103%","v":{"$error":"#REF!"}},{"$f":"#REF!*104%","v":{"$error":"#REF!"}},221.98016984000006]
[null,"Пескобетон М300+ ТМ \"Каменный цветок\" \"АЛМАЗ\"40кг (крупнозернитый)",null,"1960кг. ",{"$f":"Таблица1[[#This Row],[Минимально публикуемые цены крупный опт]]*103%","v":{"$error":"#REF!"}},{"$f":"#REF!*104%","v":{"$error":"#REF!"}},181.43122081632657]
[null,"Пескобетон М400+ крупнозернистый ТМ \"Каменный цветок\" \"КОРУНД\" 40кг     (Сухой бетон)",null,"1960кг. ",{"$f":"Таблица1[[#This Row],[Минимально публикуемые цены крупный опт]]*103%","v":{"$error":"#REF!"}},{"$f":"#REF!*104%","v":{"$error":"#REF!"}},200.60720049632661]
[null,"Песок"]
[null,"ПЕСОК ТМ \"Каменный цветок\" \"КВАРЦ\" 25кг",null,"1200кг. ",{"$f":"Таблица1[[#This Row],[Минимально публикуемые цены крупный опт]]*103%","v":{"$error":"#REF!"}},{"$f":"#REF!*104%","v":{"$error":"#REF!"}},83.386240752941191]
[null,"ПЕСОК ТМ \"Каменный цветок\" \"КВАРЦ\" 40кг",null,"1960кг. ",{"$f":"Таблица1[[#This Row],[Минимально публикуемые цены крупный опт]]*103%","v":{"$error":"#REF!"}},{"$f":"#REF!*104%","v":{"$error":"#REF!"}},121.96141041632654]
[null,"Цемент"]
[null,"Цемент ТМ\"Каменный цветок\" \"КЛИНКЕР\" 40кг",null,"1960кг. ",{"$f":"Таблица1[[#This Row],[Минимально публикуемые цены крупный опт]]*103%","v":{"$error":"#REF!"}},{"$f":"#REF!*104%","v":{"$error":"#REF!"}},345.27661681632657,null,null,null," "]
[null,"Цемент ТМ\"Каменный цветок\" \"КЛИНКЕР\" 50кг",null,"2000кг. ",{"$f":"Таблица1[[#This Row],[Минимально публикуемые цены крупный опт]]*103%","v":{"$error":"#REF!"}},{"$f":"#REF!*104%","v":{"$error":"#REF!"}},412.64766400000013]
[null,"Штукатурка"]
[null,"Штукатурка гипсовая ТМ\"Каменный цветок\" \"АГАТ\" 30кг серая для ручного нанесения",null,"1200кг. ",{"$f":"Таблица1[[#This Row],[Минимально публикуемые цены крупный опт]]*105%","v":{"$error":"#REF!"}},{"$f":"#REF!*110%","v":{"$error":"#REF!"}},275.01908823529419]
[null,"Штукатурка гипсовая ТМ\"Каменный цветок\" \"ШПАТ\"  белая 30кг ",null,"1200кг. ",{"$f":"Таблица1[[#This Row],[Минимально публикуемые цены крупный опт]]*105%","v":{"$error":"#REF!"}},{"$f":"#REF!*110%","v":{"$error":"#REF!"}},25.192588235294121]
[null,"Штукатурка гипсовая ТМ\"Каменный цветок\" \"МРАМОР\" 30кг белая для ручного и машиного нанесения",null,"1200кг. ",{"$f":"Таблица1[[#This Row],[Минимально публикуемые цены крупный опт]]*105%","v":{"$error":"#REF!"}},{"$f":"#REF!*110%","v":{"$error":"#REF!"}},342.11534823529416]
[null,"Штукатурка гипсовая ТМ\"Каменный цветок\" \"ТОПАЗ\" 30кг серая для ручного и машиного нанесения",null,"1200кг. ",{"$f":"Таблица1[[#This Row],[Минимально публикуемые цены крупный опт]]*105%","v":{"$error":"#REF!"}},{"$f":"#REF!*110%","v":{"$error":"#REF!"}},290.45762307692308]
[null,"Штукатурка гипсовая ТМ \"Каменный цветок\" \"ЯХОНТ\" белая ",null,"1200кг. ",{"$f":"Таблица1[[#This Row],[Минимально публикуемые цены крупный опт]]*105%","v":{"$error":"#REF!"}},{"$f":"#REF!*110%","v":{"$error":"#REF!"}},26.355323076923078]
[null,"Грунтовочный набрызг  ТМ\"Каменный цветок\" \"ГРАНАТ\" 25кг",null,"1200кг.",{"$f":"Таблица1[[#This Row],[Минимально публикуемые цены крупный опт]]*105%","v":{"$error":"#REF!"}},{"$f":"#REF!*104%","v":{"$error":"#REF!"}},215.55694588235301]
[null,"Штукатурка цеметная базовая ТМ\"Каменный цветок\" \"АМЕТИСТ\" 40кг для ручного и машинного нанесения",null,"2000кг. ",{"$f":"Таблица1[[#This Row],[Минимально публикуемые цены крупный опт]]*105%","v":{"$error":"#REF!"}},{"$f":"#REF!*104%","v":{"$error":"#REF!"}},311.09484342857149]
[null,"Плиточный клей"]
[null,"Клей плиточный ТМ\"Каменный цветок\" \"МАЛАХИТ\" 25кг  для внутренних работ",null,"1200кг. ",{"$f":"Таблица1[[#This Row],[Минимально публикуемые цены крупный опт]]*105%","v":{"$error":"#REF!"}},{"$f":"#REF!*104%","v":{"$error":"#REF!"}},198.01068988235295]
[null,"Клей плиточный ТМ \"Каменный цветок\" \"БИРЮЗА\" 25кг для внутренних и наружных работ",null,"1200кг. ",{"$f":"Таблица1[[#This Row],[Минимально публикуемые цены крупный опт]]*105%","v":{"$error":"#REF!"}},{"$f":"#REF!*104%","v":{"$error":"#REF!"}},203.40953788235296]
[null,"Клей плиточный ТМ \"Каменный цветок\" \"ИЗУМРУД\" 25кг для внутренних и наружных работ",null,"1200кг. ",{"$f":"Таблица1[[#This Row],[Минимально публикуемые цены крупный опт]]*105%","v":{"$error":"#REF!"}},{"$f":"#REF!*104%","v":{"$error":"#REF!"}},19.848705882352942]
[null,"Клей плиточный ТМ\"Каменный цветок\" \"ГРАНИТ\" 25кг для керамогранита , тяжелой плитки и натурального камня",null,"1200кг. ",{"$f":"Таблица1[[#This Row],[Минимально публикуемые цены крупный опт]]*105%","v":{"$error":"#REF!"}},{"$f":"#REF!*104%","v":{"$error":"#REF!"}},273.59456188235293]
[null,"Клей плиточный ТМ\"Каменный цветок\" \"АКВАМАРИН\" 25кг  для влажных помещений",null,"1200кг. ",{"$f":"Таблица1[[#This Row],[Минимально публикуемые цены крупный опт]]*105%","v":{"$error":"#REF!"}},{"$f":"#REF!*104%","v":{"$error":"#REF!"}},280.34312188235299]
[null,"Монтажный клей"]
[null,"Клей для плит ТМ\"Каменный цветок\" \"КОРАЛЛ\" 25кг  для крепления плит из пенополистирола, для создания армированного защитного слоя",null,"1200кг. ",{"$f":"Таблица1[[#This Row],[Минимально публикуемые цены крупный опт]]*105%","v":{"$error":"#REF!"}},{"$f":"#REF!*104%","v":{"$error":"#REF!"}},300.58880188235298]
[null,"Клей для плит ТМ\"Каменный цветок\" \"БАЗАЛЬТ\" 25кг для крепления базальтовых плит, для создания армированного защитного слоя",null,"1200кг. ",{"$f":"Таблица1[[#This Row],[Минимально публикуемые цены крупный опт]]*105%","v":{"$error":"#REF!"}},{"$f":"#REF!*104%","v":{"$error":"#REF!"}},295.82511247058824]
[null,"Клей для стеновых блоков ТМ\"Каменный цветок\" \"МАГМА\" 25кг для укладки газосиликатных блоков",null,"1200кг. ",{"$f":"Таблица1[[#This Row],[Минимально публикуемые цены крупный опт]]*105%","v":{"$error":"#REF!"}},{"$f":"#REF!*104%","v":{"$error":"#REF!"}},192.61184188235299]
[null,"Клей для стеновых блоков ТМ\"Каменный цветок\" \"МАГМАЭКСТРАПРОФИ\" 40кг для укладки газосиликатных блоков",null,"1960кг. ",{"$f":"Таблица1[[#This Row],[Минимально публикуемые цены крупный опт]]*105%","v":{"$error":"#REF!"}},{"$f":"#REF!*104%","v":{"$error":"#REF!"}},297.59772342857144]
[null,"Клей для гипсоволоконных плит ТМ\"Каменный цветок\" \"ТУРМАЛИН\" 20кг для монтажа пазогребневых плит и крепления листов гипсокартона",null,"1120кг. ",{"$f":"Таблица1[[#This Row],[Минимально публикуемые цены крупный опт]]*105%","v":{"$error":"#REF!"}},{"$f":"#REF!*104%","v":{"$error":"#REF!"}},259.96133647058826]
[null,"Смесь для пола"]
[null,"Стяжка пола ТМ\"Каменный цветок\" \"РОДОНИТ\" 25кг (20-200мм)",null,"1200кг. ",{"$f":"Таблица1[[#This Row],[Минимально публикуемые цены крупный опт]]*105%","v":{"$error":"#REF!"}},{"$f":"#REF!*104%","v":{"$error":"#REF!"}},169.66673788235298]
[null,"\"ОНИКС\" РОВНИТЕЛЬ ТОЛСТОСЛОЙНЫЙ БЫСТРОТВЕРДЕЮЩИЙ 20 кг ",null,"1120кг.",{"$f":"Таблица1[[#This Row],[Минимально публикуемые цены крупный опт]]*105%","v":{"$error":"#REF!"}},{"$f":"#REF!*104%","v":{"$error":"#REF!"}},17.013176470588238]
[null,"Пол наливной высокопрочный ТМ\"Каменный цветок\" \"ЛАЗУРИТ\" 25кг (3-30мм)",null,"1200кг. ",{"$f":"Таблица1[[#This Row],[Минимально публикуемые цены крупный опт]]*105%","v":{"$error":"#REF!"}},{"$f":"#REF!*104%","v":{"$error":"#REF!"}},307.33736188235298]
[null,"Пол наливной быстротвердеющий универсальный ТМ \"Каменный цветок\" \"САПФИР\" 20кг (3-80-мм)",null,"1120кг.",{"$f":"Таблица1[[#This Row],[Минимально публикуемые цены крупный опт]]*105%","v":{"$error":"#REF!"}},{"$f":"#REF!*104%","v":{"$error":"#REF!"}},232.96709647058827]
[null,"Грунт"]
[null,"Грунтовка глубокого проникновения ТМ\"Каменный цветок\" \"ХАЛЦЕДОН\" 10л",null,"600кг",{"$f":"Таблица1[[#This Row],[Минимально публикуемые цены крупный опт]]*105%","v":{"$error":"#REF!"}},{"$f":"#REF!*104%","v":{"$error":"#REF!"}},371.84565600000002]
[null,"Грунтовка глубокого проникновения ТМ\"Каменный цветок\" \"МАРИОН\" 10л",null,"600кг",{"$f":"Таблица1[[#This Row],[Минимально публикуемые цены крупный опт]]*105%","v":{"$error":"#REF!"}},{"$f":"#REF!*104%","v":{"$error":"#REF!"}},16.871400000000005]
[null,"Грунтовка глубокого проникновения ТМ\"Каменный цветок\" \"АЛУНИТ\" 10л",null,"600кг",{"$f":"Таблица1[[#This Row],[Минимально публикуемые цены крупный опт]]*105%","v":{"$error":"#REF!"}},{"$f":"#REF!*104%","v":{"$error":"#REF!"}},16.871400000000005]
[null,"Бетоноконтакт ТМ\"Каменный цветок\" \"ОБСИДИАН\" 20л",null,"24шт",{"$f":"Таблица1[[#This Row],[Минимально публикуемые цены крупный опт]]*105%","v":{"$error":"#REF!"}},{"$f":"#REF!*104%","v":{"$error":"#REF!"}},1277.1649800000002]
[null,"Бетоноконтакт ТМ\"Каменный цветок\" \"ОБСИДИАН\" 6л",null,"56шт",{"$f":"Таблица1[[#This Row],[Минимально публикуемые цены крупный опт]]*105%","v":{"$error":"#REF!"}},{"$f":"#REF!*104%","v":{"$error":"#REF!"}},429.7386600000001]
[null,"Шпатлевка"]
[null,"Шпатлевка выравнивающая ТМ\"Каменный цветок\" \"ЯНТАРЬ\" 25кг  серая   цементная базовая",null,"1200кг.",{"$f":"Таблица1[[#This Row],[Минимально публикуемые цены крупный опт]]*105%","v":{"$error":"#REF!"}},{"$f":"#REF!*104%","v":{"$error":"#REF!"}},215.55694588235301]
[null,"Шпатлевка финишная  гипсовая ТМ\"Каменный цветок\" \"ЖЕМЧУГ\"30кг белая",null,"1200кг.",{"$f":"Таблица1[[#This Row],[Минимально публикуемые цены крупный опт]]*105%","v":{"$error":"#REF!"}},{"$f":"#REF!*104%","v":{"$error":"#REF!"}},477.32167905882352]
[null,"Шпатлевка базовая  гипсовая ТМ\"Каменный цветок\" \"ЯШМА\"30кг белая",null,"1200кг.",{"$f":"Таблица1[[#This Row],[Минимально публикуемые цены крупный опт]]*105%","v":{"$error":"#REF!"}},{"$f":"#REF!*104%","v":{"$error":"#REF!"}},461.1251350588235]
[null," Шпаклевка цементная финишная ТМ\"Каменный цветок\" \"ШПИНЕЛЬ\" белая  40кг ",null,"2000кг. ",{"$f":"Таблица1[[#This Row],[Минимально публикуемые цены крупный опт]]*105%","v":{"$error":"#REF!"}},{"$f":"#REF!*104%","v":{"$error":"#REF!"}},33.054171428571429]
[null,"Шпатлевка полимерная ТМ\"Каменный цветок\" \"СЕЛЕНИТ\" 30 кг белая",null,"1200кг.",{"$f":"Таблица1[[#This Row],[Минимально публикуемые цены крупный опт]]*105%","v":{"$error":"#REF!"}},{"$f":"#REF!*104%","v":{"$error":"#REF!"}},631.18884705882363]
[null,"Гидроэзоляция"]
[null,"Гидроизоляция жесткая ТМ\"Каменный цветок\" \"КРЕМЕНЬ\" 25кг",null,"1200кг.",{"$f":"Таблица1[[#This Row],[Минимально публикуемые цены крупный опт]]*105%","v":{"$error":"#REF!"}},{"$f":"#REF!*104%","v":{"$error":"#REF!"}},559.73350588235292]